[Event "2e tournoi de GMI du Barreau de Paris"]
[Site "Paris, France"]
[Date "2021.06.21"]
[Round "5.1"]
[White "Msellek, Ilyass"]
[Black "Fedorchuk, Sergey A."]
[Result "1-0"]
[TimeControl "90+30"]
[WhiteElo "2334"]
[BlackElo "2616"]

1. Nf3 {[%clk 01:30:50]} {[%emt 00:00:09]} Nf6 {[%clk 01:30:33]} {[%emt
00:00:27]} 2. c4 {[%clk 01:30:59]} {[%emt 00:00:21]} e6 {[%clk 01:29:29]}
{[%emt 00:01:35]} 3. g3 {[%clk 01:31:15]} {[%emt 00:00:14]} a6 {[%clk
01:29:03]} {[%emt 00:00:56]} 4. Bg2 {[%clk 01:30:54]} {[%emt 00:00:51]} b5
{[%clk 01:29:24]} {[%emt 00:00:09]} 5. b3 {[%clk 01:30:39]} {[%emt 00:00:45]}
c5 {[%clk 01:24:59]} {[%emt 00:04:54]} 6. O-O {[%clk 01:29:58]} {[%emt
00:01:12]} Bb7 {[%clk 01:24:56]} {[%emt 00:00:33]} 7. Nc3 {[%clk 01:29:15]}
{[%emt 00:01:13]} Qb6 {[%clk 01:24:27]} {[%emt 00:00:59]} 8. e3 {[%clk
01:28:37]} {[%emt 00:01:08]} Be7 {[%clk 01:21:03]} {[%emt 00:03:54]} 9. d4
{[%clk 01:27:08]} {[%emt 00:02:00]} O-O {[%clk 01:08:46]} {[%emt 00:12:47]} 10.
d5 {[%clk 01:22:27]} {[%emt 00:05:11]} exd5 {[%clk 01:07:43]} {[%emt 00:01:33]}
11. cxd5 {[%clk 01:20:41]} {[%emt 00:02:16]} d6 {[%clk 01:07:57]} {[%emt
00:00:16]} 12. e4 {[%clk 01:12:19]} {[%emt 00:08:52]} Nbd7 {[%clk 01:07:50]}
{[%emt 00:00:36]} 13. Bb2 {[%clk 00:58:25]} {[%emt 00:14:25]} Rfe8 {[%clk
01:05:11]} {[%emt 00:03:08]} 14. Nd2 {[%clk 00:49:17]} {[%emt 00:09:39]} Ne5
{[%clk 01:01:25]} {[%emt 00:04:15]} 15. Qe2 {[%clk 00:46:47]} {[%emt 00:03:01]}
Rac8 {[%clk 00:55:01]} {[%emt 00:06:54]} 16. a4 {[%clk 00:44:41]} {[%emt
00:02:36]} c4 {[%clk 00:49:59]} {[%emt 00:05:31]} 17. axb5 {[%clk 00:40:07]}
{[%emt 00:05:05]} axb5 {[%clk 00:49:49]} {[%emt 00:00:40]} 18. bxc4 {[%clk
00:40:00]} {[%emt 00:00:37]} Nxc4 {[%clk 00:49:04]} {[%emt 00:01:15]} 19. Nxc4
{[%clk 00:39:05]} {[%emt 00:01:25]} Rxc4 {[%clk 00:49:23]} {[%emt 00:00:10]} 20.
Rfb1 {[%clk 00:35:04]} {[%emt 00:04:32]} Bf8 {[%clk 00:46:52]} {[%emt
00:03:01]} 21. Qf1 {[%clk 00:18:31]} {[%emt 00:17:03]} Qc5 {[%clk 00:14:58]}
{[%emt 00:32:24]} 22. Ra5 {[%clk 00:11:46]} {[%emt 00:07:15]} Qc8 {[%clk
00:15:06]} {[%emt 00:00:21]} 23. Qd3 {[%clk 00:08:11]} {[%emt 00:04:06]} b4
{[%clk 00:07:18]} {[%emt 00:08:18]} 24. Na4 {[%clk 00:08:16]} {[%emt 00:00:25]}
Nd7 {[%clk 00:05:12]} {[%emt 00:02:36]} 25. Ra7 {[%clk 00:04:26]} {[%emt
00:04:20]} Rc7 {[%clk 00:05:28]} {[%emt 00:00:14]} 26. Qb5 {[%clk 00:03:58]}
{[%emt 00:00:59]} Qb8 {[%clk 00:02:52]} {[%emt 00:03:06]} 27. Bd4 {[%clk
00:02:36]} {[%emt 00:01:52]} Nc5 {[%clk 00:02:01]} {[%emt 00:01:21]} 28. Rxb4
{[%clk 00:01:04]} {[%emt 00:02:02]} Qxa7 {[%clk 00:01:40]} {[%emt 00:00:50]} 29.
Qxe8 {[%clk 00:01:23]} {[%emt 00:00:11]} Qa5 {[%clk 00:02:08]} {[%emt
00:00:03]} 30. Bxc5 {[%clk 00:00:56]} {[%emt 00:00:57]} dxc5 {[%clk 00:02:17]}
{[%emt 00:00:21]} 31. Rb1 {[%clk 00:01:14]} {[%emt 00:00:12]} Qd2 {[%clk
00:00:35]} {[%emt 00:02:11]} 32. Qd8 {[%clk 00:01:09]} {[%emt 00:00:35]} Rc8
{[%emt 00:00:35]} 33. Qb6 {[%clk 00:01:05]} {[%emt 00:00:33]} Ba8 {[%clk
00:00:48]} {[%emt 00:00:13]} 34. Bh3 {[%clk 00:01:12]} {[%emt 00:00:23]} Re8
{[%clk 00:01:05]} {[%emt 00:00:13]} 35. Bg2 {[%clk 00:00:42]} {[%emt 00:01:00]}
c4 {[%clk 00:01:16]} {[%emt 00:00:19]} 36. Qb5 {[%clk 00:00:53]} {[%emt
00:00:19]} Rc8 {[%clk 00:01:09]} {[%emt 00:00:37]} 37. Bh3 {[%clk 00:00:54]}
{[%emt 00:00:30]} Rc7 {[%clk 00:00:55]} {[%emt 00:00:44]} 38. Qe8 {[%clk
00:00:54]} {[%emt 00:00:30]} Bb7 {[%clk 00:00:54]} {[%emt 00:00:31]} 39. Qd8
{[%clk 00:00:41]} {[%emt 00:00:42]} Re7 {[%clk 00:00:41]} {[%emt 00:00:43]} 40.
Nc5 {[%clk 00:00:37]} {[%emt 00:00:35]} c3 {[%clk 00:00:59]} {[%emt 00:00:12]}
41. d6 {[%clk 00:00:33]} {[%emt 00:00:34]} c2 {[%clk 00:00:33]} {[%emt
00:00:56]} 42. Rf1 {[%clk 00:00:40]} {[%emt 00:00:23]} Rxe4 {[%clk 00:00:45]}
{[%emt 00:00:18]} 43. d7 {[%emt 00:00:39]} c1=Q {[%clk 00:01:00]} {[%emt
00:00:14]} 44. Nxe4 {[%clk 00:00:38]} {[%emt 00:00:23]} Bxe4 {[%clk 00:01:14]}
{[%emt 00:00:16]} 45. Rxc1 {[%clk 00:00:51]} {[%emt 00:00:18]} Qxc1+ {[%clk
00:01:25]} {[%emt 00:00:18]} 46. Bf1 {[%clk 00:01:17]} {[%emt 00:00:03]} Qd1
{[%clk 00:00:34]} {[%emt 00:01:21]} 47. Qc8 {[%clk 00:01:05]} {[%emt 00:00:42]}
Bd3 {[%clk 00:00:36]} {[%emt 00:00:28]} 48. Qxf8+ {[%clk 00:01:29]} {[%emt
00:00:07]} 1-0

[ePGN "0.1;DGT LiveChess/2.2.5"]

[Event "2e tournoi de GMI du Barreau de Paris"]
[Site "Paris, France"]
[Date "2021.06.21"]
[Round "6.5"]
[White "Travadon, Loic"]
[Black "Msellek, Ilyass"]
[Result "1/2-1/2"]
[TimeControl "90+30"]
[WhiteElo "2415"]
[BlackElo "2334"]

1. e4 {[%clk 01:16:25]} {[%emt 00:14:34]} c5 {[%clk 01:30:36]} {[%emt
00:00:24]} 2. Nf3 {[%clk 01:16:21]} {[%emt 00:00:33]} Nc6 {[%clk 01:30:29]}
{[%emt 00:00:37]} 3. b4 {[%clk 01:16:45]} {[%emt 00:00:06]} cxb4 {[%clk
01:25:44]} {[%emt 00:05:16]} 4. a3 {[%clk 01:16:57]} {[%emt 00:00:18]} b3
{[%clk 01:12:53]} {[%emt 00:13:21]} 5. cxb3 {[%clk 01:17:14]} {[%emt 00:00:12]}
Nf6 {[%clk 01:11:08]} {[%emt 00:02:15]} 6. e5 {[%clk 01:17:26]} {[%emt
00:00:18]} Nd5 {[%clk 01:10:31]} {[%emt 00:01:06]} 7. Bb2 {[%clk 01:15:22]}
{[%emt 00:02:34]} e6 {[%clk 01:02:45]} {[%emt 00:08:17]} 8. Nc3 {[%clk
01:15:20]} {[%emt 00:00:32]} Nxc3 {[%clk 01:01:33]} {[%emt 00:01:41]} 9. Bxc3
{[%clk 01:15:37]} {[%emt 00:00:13]} d6 {[%clk 00:53:58]} {[%emt 00:08:06]} 10.
exd6 {[%clk 01:14:59]} {[%emt 00:01:07]} Qxd6 {[%clk 00:53:59]} {[%emt
00:00:29]} 11. Bc4 {[%clk 01:15:10]} {[%emt 00:00:19]} Be7 {[%clk 00:52:37]}
{[%emt 00:01:52]} 12. O-O {[%clk 01:15:18]} {[%emt 00:00:22]} O-O {[%clk
00:52:43]} {[%emt 00:00:23]} 13. b4 {[%clk 01:15:15]} {[%emt 00:00:34]} a6
{[%clk 00:51:10]} {[%emt 00:02:03]} 14. d4 {[%clk 01:14:13]} {[%emt 00:01:32]}
1/2-1/2

[Event "2e tournoi de GMI du Barreau de Paris"]
[Site "Paris, France"]
[Date "2021.06.21"]
[Round "6.1"]
[White "Fedorchuk, Sergey A."]
[Black "Bellahcene, Bilel"]
[Result "0-1"]
[TimeControl "90+30"]
[WhiteElo "2616"]
[BlackElo "2499"]

1. e4 {[%clk 01:29:48]} {[%emt 00:00:59]} c5 {[%clk 01:26:50]} {[%emt
00:04:22]} 2. Nf3 {[%clk 01:29:57]} {[%emt 00:00:21]} e6 {[%clk 01:27:18]}
{[%emt 00:00:03]} 3. b3 {[%clk 01:28:57]} {[%emt 00:01:30]} a6 {[%clk
01:27:33]} {[%emt 00:00:16]} 4. Bd3 {[%clk 01:24:17]} {[%emt 00:05:09]} Nc6
{[%clk 01:27:15]} {[%emt 00:00:48]} 5. Bb2 {[%clk 01:22:17]} {[%emt 00:02:30]}
d6 {[%clk 01:17:42]} {[%emt 00:10:03]} 6. O-O {[%clk 01:22:06]} {[%emt
00:00:41]} e5 {[%clk 01:16:39]} {[%emt 00:01:33]} 7. Na3 {[%clk 01:11:43]}
{[%emt 00:10:53]} Nf6 {[%clk 01:15:51]} {[%emt 00:01:17]} 8. Re1 {[%clk
01:07:17]} {[%emt 00:04:56]} Be7 {[%clk 01:10:13]} {[%emt 00:06:08]} 9. Bf1
{[%clk 01:04:29]} {[%emt 00:03:18]} O-O {[%clk 01:10:05]} {[%emt 00:00:39]} 10.
c3 {[%clk 01:04:30]} {[%emt 00:00:29]} Bg4 {[%clk 01:05:51]} {[%emt 00:04:45]}
11. Nc2 {[%clk 00:59:20]} {[%emt 00:05:40]} d5 {[%clk 01:00:50]} {[%emt
00:05:31]} 12. exd5 {[%clk 00:57:39]} {[%emt 00:02:11]} Nxd5 {[%clk 00:59:48]}
{[%emt 00:01:31]} 13. h3 {[%clk 00:53:08]} {[%emt 00:05:00]} Bh5 {[%clk
00:58:28]} {[%emt 00:01:50]} 14. c4 {[%clk 00:39:05]} {[%emt 00:14:33]} Nf4
{[%clk 00:57:43]} {[%emt 00:01:16]} 15. g4 {[%clk 00:39:05]} {[%emt 00:00:30]}
Bg6 {[%clk 00:57:55]} {[%emt 00:00:18]} 16. Nxe5 {[%clk 00:39:23]} {[%emt
00:00:11]} Bf6 {[%clk 00:52:18]} {[%emt 00:06:07]} 17. Nxc6 {[%clk 00:27:19]}
{[%emt 00:12:34]} bxc6 {[%clk 00:52:38]} {[%emt 00:00:11]} 18. Bxf6 {[%clk
00:27:45]} {[%emt 00:00:04]} Qxf6 {[%clk 00:53:05]} {[%emt 00:00:03]} 19. d3
{[%clk 00:28:10]} {[%emt 00:00:04]} Rad8 {[%clk 00:38:11]} {[%emt 00:15:24]} 20.
Re3 {[%clk 00:27:13]} {[%emt 00:01:27]} Qg5 {[%clk 00:36:30]} {[%emt 00:02:11]}
21. Ne1 {[%clk 00:25:24]} {[%emt 00:02:19]} f5 {[%clk 00:30:41]} {[%emt
00:06:19]} 22. Nf3 {[%clk 00:23:22]} {[%emt 00:02:31]} Qf6 {[%clk 00:29:34]}
{[%emt 00:01:37]} 23. g5 {[%clk 00:14:17]} {[%emt 00:09:35]} Qd6 {[%clk
00:29:00]} {[%emt 00:01:05]} 24. Qe1 {[%clk 00:09:36]} {[%emt 00:05:11]} Bh5
{[%clk 00:25:48]} {[%emt 00:03:42]} 25. Nh4 {[%clk 00:07:33]} {[%emt 00:02:32]}
Qd4 {[%clk 00:18:22]} {[%emt 00:07:56]} 26. Ng2 {[%clk 00:07:15]} {[%emt
00:00:49]} Ng6 {[%clk 00:17:43]} {[%emt 00:01:09]} 27. Rc1 {[%clk 00:06:48]}
{[%emt 00:00:58]} f4 {[%clk 00:16:21]} {[%emt 00:01:52]} 28. Re4 {[%clk
00:04:09]} {[%emt 00:03:08]} Qd7 {[%clk 00:16:47]} {[%emt 00:00:04]} 29. Qa5
{[%clk 00:01:18]} {[%emt 00:03:22]} Qf5 {[%clk 00:16:25]} {[%emt 00:00:50]} 30.
b4 {[%clk 00:00:56]} {[%emt 00:00:53]} Bf3 {[%clk 00:15:38]} {[%emt 00:01:16]}
31. Qxc5 {[%clk 00:00:44]} {[%emt 00:00:42]} Bxe4 {[%clk 00:15:56]} {[%emt
00:00:12]} 32. dxe4 {[%clk 00:01:10]} {[%emt 00:00:04]} Qxh3 {[%clk 00:14:45]}
{[%emt 00:01:41]} 33. Qxc6 {[%clk 00:01:20]} {[%emt 00:00:20]} Ne5 {[%clk
00:14:59]} {[%emt 00:00:16]} 34. Qe6+ {[%clk 00:00:52]} {[%emt 00:00:58]} Qxe6
{[%clk 00:15:24]} {[%emt 00:00:05]} 0-1

[Event "2e tournoi de GMI du Barreau de Paris"]
[Site "Paris, France"]
[Date "2021.06.21"]
[Round "6.2"]
[White "Feller, Sebastien"]
[Black "Vlachos, Anatole"]
[Result "1-0"]
[TimeControl "90+30"]
[WhiteElo "2568"]
[BlackElo "2439"]

1. e4 {[%clk 01:30:51]} {[%emt 00:00:07]} e5 {[%clk 01:30:54]} {[%emt
00:00:06]} 2. Nf3 {[%clk 01:31:14]} {[%emt 00:00:07]} Nc6 {[%clk 01:31:21]}
{[%emt 00:00:03]} 3. Bb5 {[%clk 01:31:39]} {[%emt 00:00:05]} a6 {[%clk
01:31:47]} {[%emt 00:00:04]} 4. Bxc6 {[%clk 01:31:45]} {[%emt 00:00:23]} dxc6
{[%clk 01:32:13]} {[%emt 00:00:04]} 5. O-O {[%clk 01:32:03]} {[%emt 00:00:12]}
Bg4 {[%clk 01:32:40]} {[%emt 00:00:03]} 6. h3 {[%clk 01:32:28]} {[%emt
00:00:05]} h5 {[%clk 01:33:08]} {[%emt 00:00:02]} 7. d3 {[%clk 01:32:53]}
{[%emt 00:00:05]} Qf6 {[%clk 01:33:30]} {[%emt 00:00:07]} 8. Nbd2 {[%clk
01:33:19]} {[%emt 00:00:04]} Ne7 {[%clk 01:33:06]} {[%emt 00:00:54]} 9. Nc4
{[%clk 01:33:45]} {[%emt 00:00:05]} Bxf3 {[%clk 01:32:18]} {[%emt 00:01:17]} 10.
Qxf3 {[%clk 01:34:08]} {[%emt 00:00:07]} Qxf3 {[%clk 01:32:44]} {[%emt
00:00:05]} 11. gxf3 {[%clk 01:34:31]} {[%emt 00:00:07]} Ng6 {[%clk 01:33:06]}
{[%emt 00:00:08]} 12. Rd1 {[%clk 01:33:51]} {[%emt 00:01:11]} O-O-O {[%clk
01:29:51]} {[%emt 00:03:44]} 13. Kf1 {[%clk 01:30:01]} {[%emt 00:04:20]} Bd6
{[%clk 01:12:47]} {[%emt 00:17:34]} 14. Ke2 {[%clk 01:28:31]} {[%emt 00:02:01]}
Nf8 {[%clk 01:09:19]} {[%emt 00:03:58]} 15. a4 {[%clk 00:57:10]} {[%emt
00:31:51]} Ne6 {[%clk 01:08:45]} {[%emt 00:01:03]} 16. Be3 {[%clk 00:54:31]}
{[%emt 00:03:09]} Rhf8 {[%clk 01:04:49]} {[%emt 00:04:26]} 17. a5 {[%clk
00:43:53]} {[%emt 00:11:10]} f5 {[%clk 01:05:05]} {[%emt 00:00:13]} 18. c3
{[%clk 00:38:09]} {[%emt 00:06:14]} g5 {[%clk 01:03:18]} {[%emt 00:02:16]} 19.
Rg1 {[%clk 00:34:21]} {[%emt 00:04:17]} f4 {[%clk 00:57:42]} {[%emt 00:06:06]}
20. Bc1 {[%clk 00:32:45]} {[%emt 00:02:06]} Rg8 {[%clk 00:44:05]} {[%emt
00:14:06]} 21. b3 {[%clk 00:33:08]} {[%emt 00:00:09]} g4 {[%clk 00:40:33]}
{[%emt 00:04:02]} 22. hxg4 {[%clk 00:28:01]} {[%emt 00:05:37]} hxg4 {[%clk
00:40:12]} {[%emt 00:00:50]} 23. Rxg4 {[%clk 00:27:07]} {[%emt 00:01:25]} Rxg4
{[%clk 00:40:10]} {[%emt 00:00:33]} 24. fxg4 {[%clk 00:27:32]} {[%emt
00:00:04]} Rh8 {[%clk 00:38:15]} {[%emt 00:02:24]} 25. Nd2 {[%clk 00:18:57]}
{[%emt 00:09:07]} Ng5 {[%clk 00:34:47]} {[%emt 00:03:57]} 26. Nf3 {[%clk
00:16:28]} {[%emt 00:02:59]} Nxf3 {[%clk 00:35:01]} {[%emt 00:00:17]} 27. Kxf3
{[%clk 00:16:55]} {[%emt 00:00:03]} Rh3+ {[%clk 00:35:26]} {[%emt 00:00:05]} 28.
Ke2 {[%clk 00:10:43]} {[%emt 00:06:42]} Bc5 {[%clk 00:35:49]} {[%emt 00:00:07]}
29. d4 {[%clk 00:09:44]} {[%emt 00:01:30]} exd4 {[%clk 00:36:02]} {[%emt
00:00:17]} 30. Bxf4 {[%clk 00:10:07]} {[%emt 00:00:07]} dxc3 {[%clk 00:32:20]}
{[%emt 00:04:13]} 31. Be5 {[%clk 00:07:18]} {[%emt 00:03:19]} Kd7 {[%clk
00:29:42]} {[%emt 00:03:07]} 32. g5 {[%clk 00:07:43]} {[%emt 00:00:05]} Rh4
{[%clk 00:25:54]} {[%emt 00:04:17]} 33. f3 {[%clk 00:03:45]} {[%emt 00:04:29]}
Rh5 {[%clk 00:18:29]} {[%emt 00:07:56]} 34. f4 {[%clk 00:02:50]} {[%emt
00:01:25]} Rh3 {[%clk 00:18:25]} {[%emt 00:00:33]} 35. g6 {[%clk 00:01:21]}
{[%emt 00:02:00]} Ke6 {[%clk 00:17:39]} {[%emt 00:01:16]} 36. b4 {[%clk
00:00:41]} {[%emt 00:01:10]} Re3+ {[%clk 00:15:59]} {[%emt 00:02:09]} 37. Kf2
{[%clk 00:00:46]} {[%emt 00:00:26]} Ba7 {[%clk 00:16:27]} {[%emt 00:00:02]} 38.
Kg2 {[%clk 00:01:02]} {[%emt 00:00:14]} c2 {[%clk 00:16:33]} {[%emt 00:00:25]}
39. Rc1 {[%clk 00:00:45]} {[%emt 00:00:47]} Re2+ {[%clk 00:15:55]} {[%emt
00:01:08]} 40. Kf3 {[%clk 00:00:44]} {[%emt 00:00:31]} Rf2+ {[%clk 00:16:17]}
{[%emt 00:00:06]} 41. Kg3 {[%clk 00:01:06]} {[%emt 00:00:09]} Rd2 {[%clk
00:13:07]} {[%emt 00:03:40]} 42. Bb2 {[%clk 00:01:21]} {[%emt 00:00:15]} Bd4
{[%clk 00:11:08]} {[%emt 00:02:29]} 43. Bxd4 {[%clk 00:00:59]} {[%emt
00:00:53]} Rxd4 {[%clk 00:11:37]} {[%emt 00:00:01]} 44. Kf3 {[%clk 00:00:35]}
{[%emt 00:00:54]} Rc4 {[%clk 00:12:06]} {[%emt 00:00:01]} 45. Ke3 {[%clk
00:00:59]} {[%emt 00:00:06]} b5 {[%clk 00:12:28]} {[%emt 00:00:08]} 46. axb6
{[%clk 00:01:12]} {[%emt 00:00:17]} cxb6 {[%clk 00:12:54]} {[%emt 00:00:04]} 47.
Kd3 {[%clk 00:01:01]} {[%emt 00:00:41]} Rxb4 {[%clk 00:13:18]} {[%emt
00:00:07]} 48. Rxc2 {[%clk 00:01:03]} {[%emt 00:00:28]} Rb3+ {[%clk 00:13:47]}
{[%emt 00:00:01]} 49. Ke2 {[%clk 00:01:03]} {[%emt 00:00:30]} c5 {[%clk
00:14:06]} {[%emt 00:00:11]} 50. f5+ {[%clk 00:01:32]} {[%emt 00:00:01]} Kf6
{[%clk 00:13:16]} {[%emt 00:01:19]} 51. Rd2 {[%clk 00:01:59]} {[%emt 00:00:02]}
Rg3 {[%clk 00:11:21]} {[%emt 00:02:25]} 52. Rd6+ {[%clk 00:01:57]} {[%emt
00:00:33]} Ke5 {[%clk 00:11:49]} {[%emt 00:00:02]} 53. Re6+ {[%clk 00:02:15]}
{[%emt 00:00:11]} Kf4 {[%clk 00:12:13]} {[%emt 00:00:04]} 54. Re7 {[%clk
00:02:13]} {[%emt 00:00:33]} c4 {[%clk 00:11:27]} {[%emt 00:01:17]} 55. g7
{[%clk 00:02:41]} {[%emt 00:00:02]} c3 {[%clk 00:11:54]} {[%emt 00:00:03]} 56.
f6 {[%clk 00:02:40]} {[%emt 00:00:31]} c2 {[%clk 00:12:20]} {[%emt 00:00:03]}
57. Kd2 {[%clk 00:02:46]} {[%emt 00:00:24]} Rc3 {[%clk 00:12:34]} {[%emt
00:00:16]} 58. Kc1 {[%clk 00:03:11]} {[%emt 00:00:05]} 1-0

[Event "2e tournoi de GMI du Barreau de Paris"]
[Site "Paris, France"]
[Date "2021.06.21"]
[Round "6.4"]
[White "Kevlishvili, Robby"]
[Black "Milliet, Sophie"]
[Result "1-0"]
[TimeControl "90+30"]
[WhiteElo "2499"]
[BlackElo "2407"]

1. e4 {[%clk 01:30:48]} {[%emt 00:00:10]} e5 {[%clk 01:28:18]} {[%emt
00:02:44]} 2. Nf3 {[%clk 01:31:13]} {[%emt 00:00:05]} Nc6 {[%clk 01:28:44]}
{[%emt 00:00:04]} 3. Bb5 {[%clk 01:31:38]} {[%emt 00:00:04]} a6 {[%clk
01:29:11]} {[%emt 00:00:04]} 4. Ba4 {[%clk 01:32:05]} {[%emt 00:00:03]} Nf6
{[%clk 01:29:37]} {[%emt 00:00:04]} 5. O-O {[%clk 01:32:31]} {[%emt 00:00:04]}
Nxe4 {[%clk 01:29:56]} {[%emt 00:00:11]} 6. d4 {[%clk 01:32:40]} {[%emt
00:00:21]} b5 {[%clk 01:30:20]} {[%emt 00:00:07]} 7. Bb3 {[%clk 01:33:07]}
{[%emt 00:00:03]} d5 {[%clk 01:30:46]} {[%emt 00:00:04]} 8. dxe5 {[%clk
01:33:28]} {[%emt 00:00:08]} Be6 {[%clk 01:31:13]} {[%emt 00:00:03]} 9. Nbd2
{[%clk 01:33:36]} {[%emt 00:00:22]} Nc5 {[%clk 01:31:21]} {[%emt 00:00:23]} 10.
c3 {[%clk 01:33:45]} {[%emt 00:00:21]} Be7 {[%clk 01:31:39]} {[%emt 00:00:12]}
11. Bc2 {[%clk 01:33:53]} {[%emt 00:00:22]} d4 {[%clk 01:31:48]} {[%emt
00:00:21]} 12. Nb3 {[%clk 01:34:18]} {[%emt 00:00:05]} dxc3 {[%clk 01:31:49]}
{[%emt 00:00:29]} 13. Nxc5 {[%clk 01:29:44]} {[%emt 00:05:04]} Bxc5 {[%clk
01:32:13]} {[%emt 00:00:05]} 14. Be4 {[%clk 01:29:15]} {[%emt 00:00:59]} Qd7
{[%clk 01:32:34]} {[%emt 00:00:10]} 15. Qc2 {[%clk 01:19:07]} {[%emt 00:10:38]}
Bd5 {[%clk 01:27:05]} {[%emt 00:05:59]} 16. Bf5 {[%clk 01:18:50]} {[%emt
00:00:48]} Be6 {[%clk 01:27:27]} {[%emt 00:00:08]} 17. Bxe6 {[%clk 01:18:17]}
{[%emt 00:01:03]} fxe6 {[%clk 01:11:15]} {[%emt 00:16:42]} 18. Qxc3 {[%clk
01:17:58]} {[%emt 00:00:49]} Bb6 {[%clk 01:08:09]} {[%emt 00:03:36]} 19. Be3
{[%clk 01:14:53]} {[%emt 00:03:35]} Bxe3 {[%clk 00:57:35]} {[%emt 00:11:05]} 20.
Rad1 {[%clk 01:14:44]} {[%emt 00:00:38]} Bd4 {[%clk 00:54:29]} {[%emt
00:03:36]} 21. Nxd4 {[%clk 01:15:04]} {[%emt 00:00:09]} Ne7 {[%clk 00:46:03]}
{[%emt 00:08:56]} 22. Qb3 {[%clk 01:12:23]} {[%emt 00:03:12]} Nd5 {[%clk
00:30:01]} {[%emt 00:16:32]} 23. Nxe6 {[%clk 01:12:39]} {[%emt 00:00:13]} c6
{[%clk 00:30:18]} {[%emt 00:00:13]} 24. Nf4 {[%clk 01:09:13]} {[%emt 00:03:55]}
O-O-O {[%clk 00:29:09]} {[%emt 00:01:39]} 25. Nxd5 {[%clk 01:07:58]} {[%emt
00:01:44]} cxd5 {[%clk 00:29:37]} {[%emt 00:00:03]} 26. Rfe1 {[%clk 01:08:08]}
{[%emt 00:00:20]} Rhe8 {[%clk 00:29:06]} {[%emt 00:01:02]} 27. Rd4 {[%clk
01:08:06]} {[%emt 00:00:32]} Kb7 {[%clk 00:27:15]} {[%emt 00:02:22]} 28. f4
{[%clk 01:08:15]} {[%emt 00:00:20]} Qc6 {[%clk 00:26:11]} {[%emt 00:01:34]} 29.
h4 {[%clk 01:07:26]} {[%emt 00:01:18]} Qb6 {[%clk 00:23:54]} {[%emt 00:02:49]}
30. Red1 {[%clk 01:07:47]} {[%emt 00:00:08]} Re6 {[%clk 00:23:58]} {[%emt
00:00:26]} 31. Kh2 {[%clk 01:07:52]} {[%emt 00:00:25]} Rh6 {[%clk 00:23:21]}
{[%emt 00:01:07]} 32. Qg3 {[%clk 01:06:02]} {[%emt 00:02:19]} Rg6 {[%clk
00:22:17]} {[%emt 00:01:35]} 33. Qf3 {[%clk 01:06:23]} {[%emt 00:00:08]} Qc6
{[%clk 00:19:22]} {[%emt 00:03:26]} 34. Rxd5 {[%clk 01:06:35]} {[%emt
00:00:18]} Rxd5 {[%clk 00:19:33]} {[%emt 00:00:19]} 35. Qxd5 {[%clk 01:06:58]}
{[%emt 00:00:08]} Qxd5 {[%clk 00:19:45]} {[%emt 00:00:18]} 36. Rxd5 {[%clk
01:07:21]} {[%emt 00:00:07]} Kc7 {[%clk 00:20:11]} {[%emt 00:00:05]} 37. f5
{[%clk 01:07:38]} {[%emt 00:00:13]} Rg4 {[%clk 00:20:31]} {[%emt 00:00:10]} 38.
e6 {[%clk 01:07:37]} {[%emt 00:00:31]} Rxh4+ {[%clk 00:20:32]} {[%emt
00:00:29]} 39. Kg3 {[%clk 01:08:01]} {[%emt 00:00:05]} Re4 {[%clk 00:20:56]}
{[%emt 00:00:06]} 40. Rd7+ {[%clk 01:08:18]} {[%emt 00:00:13]} Kc6 {[%clk
00:21:21]} {[%emt 00:00:05]} 41. Rxg7 {[%clk 01:08:40]} {[%emt 00:00:08]} Re2
{[%clk 00:20:26]} {[%emt 00:01:25]} 42. e7 {[%clk 01:08:36]} {[%emt 00:00:34]}
Kd7 {[%clk 00:20:48]} {[%emt 00:00:08]} 43. f6 {[%clk 01:09:00]} {[%emt
00:00:05]} Rxb2 {[%clk 00:20:33]} {[%emt 00:00:47]} 44. Rg8 {[%clk 01:09:23]}
{[%emt 00:00:06]} Re2 {[%clk 00:20:57]} {[%emt 00:00:07]} 45. Rd8+ {[%clk
01:09:47]} {[%emt 00:00:05]} 1-0